fUSD/lending_fUSD_20250824
["ID","MTS","AMOUNT","RATE_DAILY","PERIOD"]
[381126560,1756060256672,-1720.53,0.00021917,2]
[381126561,1756060256682,-1021.66,0.00021917,2]
[381126562,1756060256691,-400.0,0.00021917,2]
[381126563,1756060256700,-753.41,0.00021917,2]
[381126564,1756060256710,-787.8,0.00021917,2]
[381126565,1756060256719,-1453.03,0.00021917,2]
[381126566,1756060256729,-1618.0,0.00021917,2]
[381126567,1756060256739,-817.95,0.00021917,2]
[381126568,1756060256748,-837.46,0.00021917,2]
[381126569,1756060256757,-889.48,0.00021917,2]
[381126570,1756060256767,-1237.73,0.00021917,2]
[381126571,1756060256777,-523.22,0.00021917,2]
[381126572,1756060256787,-400.0,0.00021917,2]
[381126573,1756060256796,-1766.25,0.00021917,2]
[381126574,1756060256805,-1957.53,0.00021917,2]
[381126575,1756060256814,-400.0,0.00021917,2]
[381126576,1756060256823,-1610.27,0.00021917,2]
[381126577,1756060256833,-730.4,0.00021917,2]
[381126578,1756060256842,-1152.79,0.00021917,2]
[381126579,1756060256851,-400.0,0.00021917,2]
[381126580,1756060256861,-151.0,0.00021917,2]
[381126581,1756060256870,-151.0,0.00021917,2]
[381126582,1756060256879,-151.0,0.00021917,2]
[381126583,1756060256889,-151.0,0.00021917,2]
[381126584,1756060256898,-151.0,0.00021917,2]
[381126585,1756060256908,-698.63,0.00021917,2]
[381126586,1756060256917,-151.0,0.00021917,2]
[381126587,1756060256926,-151.0,0.00021917,2]
[381126588,1756060256935,-151.0,0.00021917,2]
[381126589,1756060256948,-524.92,0.00021917,2]
[381126590,1756060256958,-151.0,0.00021917,2]
[381126591,1756060256967,-151.0,0.00021917,2]
[381126592,1756060256977,-400.0,0.00021917,2]
[381126593,1756060256986,-151.0,0.00021917,2]
[381126594,1756060256995,-151.0,0.00021917,2]
[381126595,1756060257004,-895.01,0.00021917,2]
[381126596,1756060257014,-151.0,0.00021917,2]
[381126597,1756060257024,-166.029794,0.00021917,2]
[381126598,1756060257033,-1103.18,0.00021917,2]
[381126599,1756060257043,-300.548377,0.00021917,2]
[381126600,1756060257052,-400.0,0.00021917,2]
[381126601,1756060257061,-542.77,0.00021917,2]
[381126602,1756060257071,-400.0,0.00021917,2]
[381126603,1756060257082,-1514.81,0.00021917,2]
[381126604,1756060257091,-400.0,0.00021917,2]
[381126605,1756060257100,-400.0,0.00021917,2]
[381126606,1756060257110,-400.0,0.00021917,2]
[381126607,1756060257120,-151.0,0.00021917,2]
[381126608,1756060257129,-1105.13,0.00021917,2]
[381126609,1756060257138,-400.0,0.00021917,2]
[381126610,1756060257148,-151.0,0.00021917,2]
[381126611,1756060257157,-151.0,0.00021917,2]
[381126612,1756060257166,-400.0,0.00021917,2]
[381126613,1756060257176,-151.0,0.00021917,2]
[381126614,1756060257186,-151.0,0.00021917,2]
[381126615,1756060257199,-808.1,0.00021917,2]
[381126616,1756060257208,-151.0,0.00021917,2]
[381126617,1756060257217,-151.0,0.00021917,2]
[381126618,1756060257227,-151.0,0.00021917,2]
[381126619,1756060257236,-254.252812,0.00021917,2]
[381126620,1756060257245,-151.0,0.00021917,2]
[381126621,1756060257255,-1595.39,0.00021917,2]
[381126622,1756060257265,-151.0,0.00021917,2]
[381126623,1756060257274,-252.997584,0.00021917,2]
[381126624,1756060257284,-254.252812,0.00021917,2]
[381126625,1756060257293,-400.0,0.00021917,2]
[381126626,1756060257302,-254.252812,0.00021917,2]
[381126627,1756060257311,-1447.84,0.00021917,2]
[381126628,1756060257321,-400.0,0.00021917,2]
[381126629,1756060257330,-254.252812,0.00021917,2]
[381126630,1756060257340,-759.95,0.00021917,2]
[381126631,1756060257349,-254.252812,0.00021917,2]
[381126632,1756060257358,-254.252812,0.00021917,2]
[381126633,1756060257368,-530.02,0.00021917,2]
[381126634,1756060257377,-151.0,0.00021917,2]
[381126635,1756060257387,-254.252812,0.00021917,2]
[381126636,1756060257396,-151.0,0.00021917,2]
[381126637,1756060257406,-254.252812,0.00021917,2]
[381126638,1756060257415,-400.0,0.00021917,2]
[381126639,1756060257424,-151.0,0.00021917,2]
[381126640,1756060257433,-254.252812,0.00021917,2]
[381126641,1756060257443,-168.48616,0.00021917,2]
[381126642,1756060257453,-254.252812,0.00021917,2]
[381126643,1756060257464,-151.0,0.00021917,2]
[381126644,1756060257473,-254.252812,0.00021917,2]
[381126645,1756060257482,-151.0,0.00021917,2]
[381126646,1756060257491,-254.252812,0.00021917,2]
[381126647,1756060257502,-151.0,0.00021917,2]
[381126648,1756060257511,-254.252812,0.00021917,2]
[381126649,1756060257520,-400.0,0.00021917,2]
[381126650,1756060257529,-254.252812,0.00021917,2]
[381126651,1756060257539,-254.252812,0.00021917,2]
[381126652,1756060257548,-254.252812,0.00021917,2]
[381126653,1756060257557,-254.252812,0.00021917,2]
[381126654,1756060257567,-254.252812,0.00021917,2]
[381126655,1756060257576,-254.252812,0.00021917,2]
[381126656,1756060257585,-254.252808,0.00021917,2]
[381126657,1756060257595,-342.154391,0.00021917,2]
[381126658,1756060257604,-400.0,0.00021917,2]
[381126659,1756060257614,-342.154391,0.00021917,2]
[381126660,1756060257623,-1324.94,0.00021917,2]
[381126661,1756060257633,-342.154391,0.00021917,2]
[381126662,1756060257643,-400.0,0.00021917,2]
[381126663,1756060257652,-437.55,0.00021917,2]
[381126664,1756060257661,-342.154391,0.00021917,2]
[381126665,1756060257670,-400.0,0.00021917,2]
[381126666,1756060257680,-400.0,0.00021917,2]
[381126667,1756060257689,-400.0,0.00021917,2]
[381126668,1756060257701,-400.0,0.00021917,2]
[381126669,1756060257710,-342.154391,0.00021917,2]
[381126670,1756060257719,-400.0,0.00021917,2]
[381126671,1756060257728,-342.154391,0.00021917,2]
[381126672,1756060257737,-342.154391,0.00021917,2]
[381126673,1756060257746,-342.154391,0.00021917,2]
[381126674,1756060257755,-400.0,0.00021917,2]
[381126675,1756060257765,-342.154391,0.00021917,2]
[381126676,1756060257774,-342.154391,0.00021917,2]
[381126677,1756060257783,-342.154391,0.00021917,2]
[381126678,1756060257793,-765.33,0.00021917,2]
[381126679,1756060257804,-400.0,0.00021917,2]
[381126680,1756060257814,-342.154391,0.00021917,2]
[381126681,1756060257823,-342.154391,0.00021917,2]
[381126682,1756060257832,-455.03,0.00021917,2]
[381126683,1756060257842,-158.52131821,0.00021917,2]
[381126684,1756060257851,-342.154391,0.00021917,2]
[381126685,1756060257861,-342.154391,0.00021917,2]
[381126686,1756060257870,-400.0,0.00021917,2]
[381126687,1756060257879,-342.154391,0.00021917,2]
[381126688,1756060257889,-1753.01,0.00021917,2]
[381126689,1756060257898,-342.154391,0.00021917,2]
[381126690,1756060257907,-342.154391,0.00021917,2]
[381126691,1756060257917,-342.154391,0.00021917,2]
[381126692,1756060257927,-342.154395,0.00021917,2]
[381126693,1756060257936,-1471.33,0.00021917,2]
[381126694,1756060257948,-400.0,0.00021917,2]
[381126695,1756060257957,-453.28,0.00021917,2]
[381126696,1756060257966,-1364.52,0.00021917,2]
[381126697,1756060257976,-400.0,0.00021917,2]
[381126698,1756060257986,-941.57,0.00021917,2]
[381126699,1756060257995,-401.08,0.00021917,2]
[381126700,1756060258006,-1069.89,0.00021917,2]
[381126701,1756060258015,-400.0,0.00021917,2]
[381126702,1756060258025,-400.0,0.00021917,2]
[381126703,1756060258034,-400.0,0.00021917,2]
[381126704,1756060258044,-400.0,0.00021917,2]
[381126705,1756060258054,-400.0,0.00021917,2]
[381126706,1756060258063,-1231.86,0.00021917,2]
[381126707,1756060258073,-151.0,0.00021917,2]
[381126708,1756060258082,-400.0,0.00021917,2]
[381126709,1756060258091,-151.0,0.00021917,2]
[381126710,1756060258101,-151.0,0.00021917,2]
[381126711,1756060258111,-400.0,0.00021917,2]
[381126712,1756060258120,-151.0,0.00021917,2]
[381126713,1756060258130,-924.15,0.00021917,2]
[381126714,1756060258139,-151.0,0.00021917,2]
[381126715,1756060258149,-981.51,0.00021917,2]
[381126716,1756060258158,-151.0,0.00021917,2]
[381126717,1756060258168,-457.04,0.00021917,2]
[381126718,1756060258177,-151.0,0.00021917,2]
[381126719,1756060258187,-265.57039,0.00021917,2]
[381126720,1756060258199,-1055.47,0.00021917,2]
[381126721,1756060258208,-400.0,0.00021917,2]
[381126722,1756060258217,-400.0,0.00021917,2]
[381126723,1756060258227,-1027.23,0.00021917,2]
[381126724,1756060258236,-400.0,0.00021917,2]
[381126725,1756060258246,-400.0,0.00021917,2]
[381126726,1756060258255,-400.0,0.00021917,2]
[381126727,1756060258264,-707.61,0.00021917,2]
[381126728,1756060258274,-1544.99,0.00021917,2]
[381126729,1756060258284,-1193.39,0.00021917,2]
[381126730,1756060258293,-400.0,0.00021917,2]
[381126731,1756060258303,-400.0,0.00021917,2]
[381126732,1756060258313,-1128.42,0.00021917,2]
[381126733,1756060258322,-400.0,0.00021917,2]
[381126734,1756060258332,-497.8,0.00021917,2]
[381126735,1756060258341,-1082.99,0.00021917,2]
[381126736,1756060258350,-424.45,0.00021917,2]
[381126737,1756060258359,-400.0,0.00021917,2]
[381126738,1756060258369,-997.81,0.00021917,2]
[381126739,1756060258378,-400.0,0.00021917,2]
[381126740,1756060258387,-1073.22,0.00021917,2]
[381126741,1756060258397,-865.26,0.00021917,2]
[381126742,1756060258406,-151.0,0.00021917,2]
[381126743,1756060258415,-1237.05,0.00021917,2]
[381126744,1756060258425,-151.0,0.00021917,2]
[381126745,1756060258434,-198.336001,0.00021917,2]
[381126746,1756060258443,-400.0,0.00021917,2]
[381126747,1756060258455,-400.0,0.00021917,2]
[381126748,1756060258464,-645.72,0.00021917,2]
[381126749,1756060258474,-532.07,0.00021917,2]
[381126750,1756060258483,-400.0,0.00021917,2]
[381126751,1756060258493,-400.0,0.00021917,2]
[381126752,1756060258502,-400.0,0.00021917,2]
[381126753,1756060258512,-531.801937,0.00021917,2]
[381126754,1756060258523,-531.801937,0.00021917,2]
[381126755,1756060258534,-400.0,0.00021917,2]
[381126756,1756060258543,-531.801937,0.00021917,2]
[381126757,1756060258553,-548.82,0.00021917,2]
[381126758,1756060258563,-531.801937,0.00021917,2]
[381126759,1756060258572,-531.801937,0.00021917,2]
[381126760,1756060258581,-531.801937,0.00021917,2]
[381126761,1756060258591,-1462.41,0.00021917,2]
[381126762,1756060258600,-151.0,0.00021917,2]
[381126763,1756060258609,-531.801937,0.00021917,2]
[381126764,1756060258619,-1512.52,0.00021917,2]
[381126765,1756060258628,-531.801937,0.00021917,2]
[381126766,1756060258637,-531.801937,0.00021917,2]
[381126767,1756060258647,-1200.49,0.00021917,2]
[381126768,1756060258656,-151.0,0.00021917,2]
[381126769,1756060258665,-531.801937,0.00021917,2]
[381126770,1756060258679,-400.0,0.00021917,2]
[381126771,1756060258688,-151.0,0.00021917,2]
[381126772,1756060258698,-531.801937,0.00021917,2]
[381126773,1756060258708,-151.0,0.00021917,2]
[381126774,1756060258723,-531.801937,0.00021917,2]
[381126775,1756060258732,-151.0,0.00021917,2]
[381126776,1756060258742,-859.61,0.00021917,2]
[381126777,1756060258751,-1169.33,0.00021917,2]
[381126778,1756060258760,-531.801937,0.00021917,2]
[381126779,1756060258770,-786.82,0.00021917,2]
[381126780,1756060258779,-4461.84,0.00021917,2]
[381126781,1756060258788,-877.71,0.00021917,2]
[381126782,1756060258797,-400.0,0.00021917,2]
[381126783,1756060258806,-151.0,0.00021917,2]
[381126784,1756060258816,-151.0,0.00021917,2]
[381126785,1756060258825,-400.0,0.00021917,2]
[381126786,1756060258834,-151.0,0.00021917,2]
[381126787,1756060258844,-228.901696,0.00021917,2]
[381126788,1756060258853,-151.0,0.00021917,2]
[381126789,1756060258863,-1372.82,0.00021917,2]
[381126790,1756060258872,-151.0,0.00021917,2]
[381126791,1756060258882,-151.0,0.00021917,2]
[381126792,1756060258891,-151.0,0.00021917,2]
[381126793,1756060258902,-151.0,0.00021917,2]
[381126794,1756060258912,-151.0,0.00021917,2]
[381126795,1756060258922,-404.28,0.00021917,2]
[381126796,1756060258932,-400.0,0.00021917,2]
[381126797,1756060258943,-151.0,0.00021917,2]
[381126798,1756060258953,-400.0,0.00021917,2]
[381126799,1756060258962,-400.0,0.00021917,2]
[381126800,1756060258971,-637.22,0.00021917,2]
[381126801,1756060258980,-151.0,0.00021917,2]
[381126802,1756060258990,-151.0,0.00021917,2]
[381126803,1756060258999,-2660.96,0.00021917,2]
[381126804,1756060259008,-808.1,0.00021917,2]
[381126805,1756060259018,-711.22,0.00021917,2]
[381126806,1756060259027,-400.0,0.00021917,2]
[381126807,1756060259037,-151.0,0.00021917,2]
[381126808,1756060259046,-1117.58,0.00021917,2]
[381126809,1756060259056,-1084.32,0.00021917,2]
[381126810,1756060259065,-400.0,0.00021917,2]
[381126811,1756060259074,-400.0,0.00021917,2]
[381126812,1756060259083,-531.801937,0.00021917,2]
[381126813,1756060259092,-531.801937,0.00021917,2]
[381126814,1756060259102,-400.0,0.00021917,2]
[381126815,1756060259111,-531.801937,0.00021917,2]
[381126816,1756060259123,-531.801937,0.00021917,2]
[381126817,1756060259137,-531.801937,0.00021917,2]
[381126818,1756060259147,-400.0,0.00021917,2]
[381126819,1756060259157,-531.801937,0.00021917,2]
[381126820,1756060259166,-1002.07,0.00021917,2]
[381126821,1756060259175,-531.801929,0.00021917,2]
[381126822,1756060259184,-514.07,0.00021917,2]
[381126823,1756060259194,-400.0,0.00021917,2]
[381126824,1756060259203,-151.0,0.00021917,2]
[381126825,1756060259212,-151.0,0.00021917,2]
[381126826,1756060259222,-151.0,0.00021917,2]
[381126827,1756060259231,-1641.49,0.00021917,2]
[381126828,1756060259241,-151.0,0.00021917,2]
[381126829,1756060259251,-151.0,0.00021917,2]
[381126830,1756060259260,-151.0,0.00021917,2]
[381126831,1756060259270,-400.0,0.00021917,2]
[381126832,1756060259279,-151.0,0.00021917,2]
[381126833,1756060259288,-151.0,0.00021917,2]
[381126834,1756060259298,-151.0,0.00021917,2]
[381126835,1756060259307,-151.0,0.00021917,2]
[381126836,1756060259317,-185.106373,0.00021917,2]
[381126837,1756060259326,-151.0,0.00021917,2]
[381126838,1756060259335,-151.0,0.00021917,2]
[381126839,1756060259344,-847.02,0.00021917,2]
[381126840,1756060259354,-151.0,0.00021917,2]
[381126841,1756060259363,-151.0,0.00021917,2]
[381126842,1756060259373,-158.88339195,0.00021917,2]
[381126843,1756060259382,-151.0,0.00021917,2]
[381126844,1756060259391,-151.0,0.00021917,2]
[381126845,1756060259401,-151.0,0.00021917,2]
[381126846,1756060259410,-151.0,0.00021917,2]
[381126847,1756060259419,-151.0,0.00021917,2]
[381126848,1756060259429,-410.75,0.00021917,2]
[381126849,1756060259438,-151.0,0.00021917,2]
[381126850,1756060259449,-151.0,0.00021917,2]
[381126851,1756060259460,-692.21,0.00021917,2]
[381126852,1756060259470,-151.0,0.00021917,2]
[381126853,1756060259479,-291.038812,0.00021917,2]
[381126854,1756060259488,-201.632519,0.00021917,2]
[381126855,1756060259497,-400.0,0.00021917,2]
[381126856,1756060259507,-1108.74,0.00021917,2]
[381126857,1756060259517,-400.0,0.00021917,2]
[381126858,1756060259526,-452.608099,0.00021917,2]
[381126859,1756060259536,-2011.47,0.00021917,2]
[381126860,1756060259545,-1246.3,0.00021917,2]
[381126861,1756060259554,-452.608099,0.00021917,2]
[381126862,1756060259564,-452.608099,0.00021917,2]
[381126863,1756060259574,-452.608099,0.00021917,2]
[381126864,1756060259583,-741.65,0.00021917,2]
[381126865,1756060259592,-452.608099,0.00021917,2]
[381126866,1756060259601,-641.72,0.00021917,2]
[381126867,1756060259611,-452.608099,0.00021917,2]
[381126868,1756060259621,-400.0,0.00021917,2]
[381126869,1756060259630,-400.0,0.00021917,2]
[381126870,1756060259640,-452.608099,0.00021917,2]
[381126871,1756060259649,-626.0,0.00021917,2]
[381126872,1756060259659,-452.608099,0.00021917,2]
[381126873,1756060259668,-452.608099,0.00021917,2]
[381126874,1756060259677,-452.608099,0.00021917,2]
[381126875,1756060259687,-452.608099,0.00021917,2]
[381126876,1756060259698,-185.106373,0.00021917,2]
[381126877,1756060259707,-452.608099,0.00021917,2]
[381126878,1756060259717,-185.106373,0.00021917,2]
[381126879,1756060259726,-452.608099,0.00021917,2]
[381126880,1756060259735,-185.106373,0.00021917,2]
[381126881,1756060259745,-400.0,0.00021917,2]
[381126882,1756060259991,-452.608099,0.00021917,2]
[381126883,1756060260030,-185.106373,0.00021917,2]
[381126884,1756060260039,-840.34,0.00021917,2]
[381126885,1756060260049,-452.608099,0.00021917,2]
[381126886,1756060260059,-452.608099,0.00021917,2]
[381126887,1756060260068,-151.0,0.00021917,2]
[381126888,1756060260078,-185.106373,0.00021917,2]
[381126889,1756060260088,-185.106373,0.00021917,2]
[381126890,1756060260098,-151.0,0.00021917,2]
[381126891,1756060260108,-452.608099,0.00021917,2]
[381126892,1756060260118,-400.0,0.00021917,2]
[381126893,1756060260128,-400.0,0.00021917,2]
[381126894,1756060260137,-151.0,0.00021917,2]
[381126895,1756060260147,-185.106373,0.00021917,2]
[381126896,1756060260156,-452.608099,0.00021917,2]
[381126897,1756060260165,-151.0,0.00021917,2]
[381126898,1756060260175,-185.106373,0.00021917,2]
[381126899,1756060260184,-452.608099,0.00021917,2]
[381126900,1756060260195,-156.4716,0.00021917,2]
[381126901,1756060260204,-151.0,0.00021917,2]
[381126902,1756060260214,-452.608091,0.00021917,2]
[381126903,1756060260224,-151.0,0.00021917,2]
[381126904,1756060260233,-156.4716,0.00021917,2]
[381126905,1756060260243,-151.0,0.00021917,2]
[381126906,1756060260252,-156.4716,0.00021917,2]
[381126907,1756060260262,-151.0,0.00021917,2]
[381126908,1756060260272,-151.0,0.00021917,2]
[381126909,1756060260281,-185.106373,0.00021917,2]
[381126910,1756060260291,-156.4716,0.00021917,2]
[381126911,1756060260300,-151.0,0.00021917,2]
[381126912,1756060260309,-185.106373,0.00021917,2]
[381126913,1756060260319,-185.106373,0.00021917,2]
[381126914,1756060260328,-151.0,0.00021917,2]
[381126915,1756060260337,-185.106373,0.00021917,2]
[381126916,1756060260347,-151.0,0.00021917,2]
[381126917,1756060260357,-156.4716,0.00021917,2]
[381126918,1756060260366,-522.6520131,0.00021917,2]
[381126919,1756060260375,-400.0,0.00021917,2]
[381126920,1756060260385,-185.106373,0.00021917,2]
[381126921,1756060260394,-156.4716,0.00021917,2]
[381126922,1756060260403,-151.0,0.00021917,2]
[381126923,1756060260412,-185.106373,0.00021917,2]
[381126924,1756060260421,-156.4716,0.00021917,2]
[381126925,1756060260431,-185.106373,0.00021917,2]
[381126926,1756060260440,-156.4716,0.00021917,2]
[381126927,1756060260456,-423.0,0.00021917,2]
[381126928,1756060260465,-185.106373,0.00021917,2]
[381126929,1756060260474,-156.4716,0.00021917,2]
[381126930,1756060260483,-156.4716,0.00021917,2]
[381126931,1756060260493,-185.106373,0.00021917,2]
[381126932,1756060260503,-400.0,0.00021917,2]
[381126933,1756060260512,-1350.69,0.00021917,2]
[381126934,1756060260522,-185.106373,0.00021917,2]
[381126935,1756060260535,-156.4716,0.00021917,2]
[381126936,1756060260545,-490.79,0.00021917,2]
[381126937,1756060260554,-400.0,0.00021917,2]
[381126938,1756060260564,-400.0,0.00021917,2]
[381126939,1756060260574,-400.0,0.00021917,2]
[381126940,1756060260584,-400.0,0.00021917,2]
[381126941,1756060260594,-400.0,0.00021917,2]
[381126942,1756060260603,-185.106365,0.00021917,2]
[381126943,1756060260614,-156.4716,0.00021917,2]
[381126944,1756060260623,-156.4716,0.00021917,2]
[381126945,1756060260632,-156.4716,0.00021917,2]
[381126946,1756060260642,-956.54,0.00021917,2]
[381126947,1756060260651,-151.0,0.00021917,2]
[381126948,1756060260661,-889.38,0.00021917,2]
[381126949,1756060260670,-156.4716,0.00021917,2]
[381126950,1756060260679,-151.0,0.00021917,2]
[381126951,1756060260689,-156.4716,0.00021917,2]
[381126952,1756060260701,-731.75,0.00021917,2]
[381126953,1756060260711,-400.0,0.00021917,2]
[381126954,1756060260720,-156.4716,0.00021917,2]
[381126955,1756060260729,-151.0,0.00021917,2]
[381126956,1756060260739,-156.4716,0.00021917,2]
[381126957,1756060260748,-151.0,0.00021917,2]
[381126958,1756060260757,-400.0,0.00021917,2]
[381126959,1756060260767,-151.0,0.00021917,2]
[381126960,1756060260776,-400.0,0.00021917,2]
[381126961,1756060260785,-151.0,0.00021917,2]
[381126962,1756060260795,-151.0,0.00021917,2]
[381126963,1756060260804,-156.4716,0.00021917,2]
[381126964,1756060260813,-151.0,0.00021917,2]
[381126965,1756060260823,-1252.67,0.00021917,2]
[381126966,1756060260833,-151.0,0.00021917,2]
[381126967,1756060260844,-156.471604,0.00021917,2]
[381126968,1756060260853,-151.0,0.00021917,2]
[381126969,1756060260863,-151.0,0.00021917,2]
[381126970,1756060260872,-151.0,0.00021917,2]
[381126971,1756060260882,-458.22,0.00021917,2]
[381126972,1756060260891,-400.0,0.00021917,2]
[381126973,1756060260904,-151.0,0.00021917,2]
[381126974,1756060260913,-920.46,0.00021917,2]
[381126975,1756060260922,-252.412448,0.00021917,2]
[381126976,1756060260932,-151.0,0.00021917,2]
[381126977,1756060260941,-151.0,0.00021917,2]
[381126978,1756060260952,-400.0,0.00021917,2]
[381126979,1756060260962,-151.0,0.00021917,2]
[381126980,1756060260972,-151.0,0.00021917,2]
[381126981,1756060260981,-151.0,0.00021917,2]
[381126982,1756060260990,-1226.47,0.00021917,2]
[381126983,1756060261000,-151.0,0.00021917,2]
[381126984,1756060261010,-151.0,0.00021917,2]
[381126985,1756060261020,-151.0,0.00021917,2]
[381126986,1756060261030,-400.0,0.00021917,2]
[381126987,1756060261040,-151.0,0.00021917,2]
[381126988,1756060261050,-468.43,0.00021917,2]
[381126989,1756060261059,-213.173576,0.00021917,2]
[381126990,1756060261069,-151.0,0.00021917,2]
[381126991,1756060261078,-167.51398,0.00021917,2]
[381126992,1756060261088,-442.69,0.00021917,2]
[381126993,1756060261097,-772.73,0.00021917,2]
[381126994,1756060261106,-400.0,0.00021917,2]
[381126995,1756060261116,-1254.15,0.00021917,2]
[381126996,1756060261126,-400.0,0.00021917,2]
[381126997,1756060261135,-814.43,0.00021917,2]
[381126998,1756060261145,-151.0,0.00021917,2]
[381126999,1756060261154,-151.0,0.00021917,2]
[381127000,1756060261163,-151.0,0.00021917,2]
[381127001,1756060261172,-152.123127,0.00021917,2]
[381127002,1756060261182,-668.54,0.00021917,2]
[381127003,1756060261191,-1244.39,0.00021917,2]
[381127004,1756060261203,-1263.35,0.00021917,2]
[381127005,1756060261212,-400.0,0.00021917,2]
[381127006,1756060261221,-400.0,0.00021917,2]
[381127007,1756060261231,-1114.76,0.00021917,2]
[381127008,1756060261243,-1725.74,0.00021917,2]
[381127009,1756060261252,-1192.94,0.00021917,2]
[381127010,1756060261262,-400.0,0.00021917,2]
[381127011,1756060261271,-2132.79,0.00021917,2]
[381127012,1756060261280,-151.0,0.00021917,2]
[381127013,1756060261289,-656.22,0.00021917,2]
[381127014,1756060261299,-151.0,0.00021917,2]
[381127015,1756060261309,-400.0,0.00021917,2]
[381127016,1756060261321,-151.0,0.00021917,2]
[381127017,1756060261331,-151.0,0.00021917,2]
[381127018,1756060261340,-400.0,0.00021917,2]
[381127019,1756060261349,-151.0,0.00021917,2]
[381127020,1756060261359,-151.0,0.00021917,2]
[381127021,1756060261368,-400.0,0.00021917,2]
[381127022,1756060261378,-151.0,0.00021917,2]
[381127023,1756060261387,-151.0,0.00021917,2]
[381127024,1756060261396,-151.0,0.00021917,2]
[381127025,1756060261406,-400.0,0.00021917,2]
[381127026,1756060261415,-151.0,0.00021917,2]
[381127027,1756060261424,-553.4,0.00021917,2]
[381127028,1756060261435,-175.71103701,0.00021917,2]
[381127029,1756060261447,-828.33,0.00021917,2]
[381127030,1756060261461,-400.0,0.00021917,2]
[381127031,1756060261470,-579.97,0.00021917,2]
[381127032,1756060261479,-400.0,0.00021917,2]
[381127033,1756060261489,-400.0,0.00021917,2]
[381127034,1756060261499,-400.0,0.00021917,2]
[381127035,1756060261508,-1740.5,0.00021917,2]
[381127036,1756060261517,-1117.35,0.00021917,2]
[381127037,1756060261526,-504.63,0.00021917,2]
[381127038,1756060261536,-1039.48,0.00021917,2]
[381127039,1756060261546,-400.0,0.00021917,2]
[381127040,1756060261556,-579.45,0.00021917,2]
[381127041,1756060261565,-876.23,0.00021917,2]
[381127042,1756060261575,-951.09,0.00021917,2]
[381127043,1756060261584,-151.0,0.00021917,2]
[381127044,1756060261593,-151.0,0.00021917,2]
[381127045,1756060261603,-400.0,0.00021917,2]
[381127046,1756060261612,-151.0,0.00021917,2]
[381127047,1756060261621,-151.0,0.00021917,2]
[381127048,1756060261630,-400.0,0.00021917,2]
[381127049,1756060261639,-151.0,0.00021917,2]
[381127050,1756060261648,-822.59,0.00021917,2]
[381127051,1756060261657,-400.0,0.00021917,2]
[381127052,1756060261667,-151.0,0.00021917,2]
[381127053,1756060261676,-400.0,0.00021917,2]
[381127054,1756060261686,-151.0,0.00021917,2]
[381127055,1756060261698,-151.0,0.00021917,2]
[381127056,1756060261707,-151.0,0.00021917,2]
[381127057,1756060261716,-1790.93,0.00021917,2]
[381127058,1756060261726,-151.0,0.00021917,2]
[381127059,1756060261736,-400.0,0.00021917,2]